bitfinex/quotes_ETHUSD_20250731
["timestamp","ask_amount","ask_price","bid_price","bid_amount"]
[1753972591229,1e-08,3790.9,3790.5,6.338]
[1753972591230,1.70310001,3790.9,3790.5,6.338]
[1753972591434,2.63803519,3790.7,3790.6,3.739]
[1753972591593,0.9209,3790.7,3790.6,4.243]
[1753972591793,3.55893519,3790.7,3790.6,4.243]
[1753972592298,2.2321,3790.7,3790.6,4.242]
[1753972592627,2.63876515,3789.7,3789.0,6.13890105]
[1753972592932,0.7612,3790.6,3789.0,6.13890105]
[1753972592933,0.4467,3790.2,3789.1,4.241]
[1753972593091,2.63850074,3790.1,3789.3,2.63897143]
[1753972593305,0.4467,3790.2,3789.4,4.24]
[1753972593504,0.9209,3790.2,3789.4,4.24]
[1753972593707,2.63873129,3789.7,3789.6,0.132]
[1753972594200,2.63873129,3789.7,3789.4,4.24]
[1753972594201,4.36913129,3789.7,3788.9,6.338]
[1753972594421,2.63881671,3789.6,3789.4,0.132]
[1753972594661,1.7304,3789.7,3789.5,4.239]
[1753972594808,0.8095,3790.2,3789.5,4.371]
[1753972595005,0.8095,3790.2,3789.0,0.52609218]
[1753972595006,3.44788551,3790.2,3789.8,0.132]
[1753972595299,2.63852242,3790.0,3789.9,4.239]
[1753972595501,2.63875415,3789.7,3789.5,0.132]
[1753972595700,4.26015438,3790.0,3788.9,6.338]
[1753972595701,0.95210254,3789.9,3788.9,6.338]
[1753972596010,0.8095,3789.4,3788.9,6.338]
[1753972596196,0.8095,3789.4,3788.9,8.97724446]
[1753972596401,0.8095,3789.4,3789.0,4.26439218]
[1753972596612,9.56405431,3791.0,3789.0,4.26439218]
[1753972596613,0.04,3792.9,3790.8,2.6379656]
[1753972596809,0.04,3792.9,3790.8,7.238]
[1753972596810,0.8319,3791.8,3790.8,7.238]
[1753972597039,0.8319,3791.8,3790.8,10.0079656]
[1753972597244,0.8319,3791.8,3790.8,10.5076656]
[1753972597749,0.8319,3791.8,3790.8,11.49611133]
[1753972597898,0.04,3791.9,3790.8,12.77711133]
[1753972598802,0.04,3791.9,3790.8,12.97368673]
[1753972599004,0.4742,3791.8,3790.8,4.37]
[1753972599203,0.4742,3791.8,3790.8,10.0079656]
[1753972599435,0.4742,3791.8,3790.8,10.5076656]
[1753972599703,0.04,3791.9,3790.8,11.16716183]
[1753972600243,1e-08,3790.9,3790.8,11.16716183]
[1753972600441,1e-08,3790.9,3790.8,13.9510838]
[1753972600946,1e-08,3790.9,3790.8,12.02228757]
[1753972601144,0.92090001,3790.9,3790.8,4.27]
[1753972601345,0.92090001,3790.9,3790.8,4.271]
[1753972602945,1.05290001,3790.9,3790.8,4.271]
[1753972603637,0.44670001,3790.9,3790.8,4.271]
[1753972603839,0.92090001,3790.9,3790.8,4.271]
[1753972604046,3.55879602,3790.9,3790.8,4.271]
[1753972604732,1.63075603,3790.9,3789.7,2.63866924]
[1753972604932,2.63837002,3790.3,3790.1,0.132]
[1753972605135,2.63837002,3790.3,3790.2,4.266]
[1753972605334,2.63826067,3790.4,3790.2,4.266]
[1753972605549,0.132,3790.7,3790.2,4.266]
[1753972605550,2.63831358,3790.3,3790.2,4.266]
[1753972605750,0.8094,3790.1,3789.3,8.97600262]
[1753972606076,2.63845281,3790.1,3789.6,0.132]
[1753972606229,0.9358,3790.8,3789.8,3.0]
[1753972606562,0.9358,3790.8,3789.9,4.265]
[1753972606862,0.8094,3790.6,3790.0,4.269]
[1753972607045,3.44751135,3790.6,3790.1,4.269]
[1753972607356,2.63838319,3790.2,3790.1,4.269]
[1753972607665,3.57418319,3790.2,3790.1,4.269]
[1753972607833,0.9358,3790.2,3790.1,4.269]
[1753972608420,3.57418319,3790.2,3790.1,4.271]
[1753972609322,0.7783,3790.1,3789.3,6.337]
[1753972609529,0.7783,3790.1,3789.4,4.268]
[1753972609754,2.63893465,3789.5,3789.3,6.337]
[1753972609921,2.6389402,3789.4,3789.3,6.337]
[1753972610125,2.6389402,3789.4,3789.3,10.603]
[1753972610372,2.6389402,3789.4,3789.3,6.337]
[1753972610662,2.63907948,3789.2,3789.1,0.04]
[1753972610874,2.67028202,3789.2,3789.1,4.306]
[1753972611038,3.57487948,3789.2,3789.1,4.306]
[1753972611553,2.63907948,3789.2,3789.1,4.306]
[1753972612059,3.57487948,3789.2,3789.1,4.306]
[1753972613163,3.57487948,3789.2,3788.1,0.5314]
[1753972613164,2.6393581,3788.8,3788.1,0.02639777]
[1753972613363,2.63921879,3789.0,3786.4,0.8004]
[1753972613364,2.64047317,3787.2,3786.6,0.4914]
[1753972613560,2.64047317,3787.2,3787.1,4.362]
[1753972613921,0.03300504,3787.3,3787.1,4.362]
[1753972613922,2.64041796,3787.3,3787.1,4.362]
[1753972614142,2.64038092,3787.4,3787.1,4.362]
[1753972614358,3.45628552,3787.5,3787.1,0.04]
[1753972614570,2.64046505,3787.3,3787.2,4.321]
[1753972614742,3.57626505,3787.3,3787.2,4.321]
[1753972615067,2.64035664,3787.4,3787.2,4.321]
[1753972615238,2.64040345,3787.3,3787.2,4.321]
[1753972615560,0.816,3787.5,3787.1,0.04]
[1753972615747,0.816,3787.5,3787.2,4.321]
[1753972615949,2.64038259,3787.4,3787.2,4.321]
[1753972616154,0.132,3787.4,3787.2,4.321]
[1753972616351,2.77234899,3787.4,3787.2,4.321]
[1753972616549,2.64040345,3787.3,3787.2,4.321]
[1753972616755,2.77234626,3787.4,3787.2,4.321]
[1753972617326,0.9358,3787.3,3787.1,0.04]
[1753972617560,2.77247317,3787.2,3787.1,0.04]
[1753972617737,3.70827317,3787.2,3787.1,0.04]
[1753972618135,4.25827317,3787.2,3787.1,0.04]
[1753972618380,8.07717317,3787.2,3787.1,0.04]
[1753972618531,9.84484484,3787.2,3787.1,0.04]
[1753972620247,6.84484484,3787.2,3787.1,0.04]
[1753972620764,5.07717317,3787.2,3787.1,0.04]
[1753972621136,4.14137317,3787.2,3787.1,0.04]
[1753972621469,2.64047317,3787.2,3787.1,0.04]
[1753972621843,3.13387317,3787.2,3787.1,0.04]
[1753972622047,4.12627317,3787.2,3787.1,0.04]
[1753972622261,7.89755419,3787.2,3787.1,0.04]
[1753972622435,4.89755419,3787.2,3787.1,0.04]
[1753972622632,3.96175419,3787.2,3787.1,0.04]
[1753972622899,2.64089156,3786.6,3786.5,4.307]
[1753972623174,2.64117056,3786.2,3785.9,0.132]
[1753972623375,2.64117056,3786.2,3786.1,4.348]
[1753972624183,0.132,3786.4,3786.1,4.348]
[1753972624545,2.64115967,3786.3,3786.1,4.348]
[1753972625088,2.77305812,3786.4,3786.1,4.348]
[1753972625238,0.132,3786.8,3786.2,1.3734]
[1753972625441,0.132,3787.0,3786.3,0.4914]
[1753972625678,2.64068235,3786.9,3786.5,0.132]
[1753972625841,2.77261843,3787.0,3786.5,0.132]
[1753972626043,2.64076238,3786.8,3786.6,0.4914]
[1753972626269,2.64069083,3786.9,3786.7,4.302]
[1753972626439,2.77262551,3787.0,3786.7,4.302]
[1753972626640,0.132,3787.0,3786.8,0.4914]
[1753972626840,2.64047317,3787.2,3786.5,0.132]
[1753972627041,2.64084742,3786.7,3786.6,4.3]
[1753972627577,0.132,3787.1,3786.6,5.2528]
[1753972627768,2.64074154,3786.9,3786.7,0.4914]
[1753972627965,2.77258699,3787.1,3786.7,0.4914]
[1753972628137,0.132,3787.1,3786.8,0.4914]
[1753972628342,2.64048053,3787.2,3786.9,0.4914]
[1753972628579,2.64051641,3787.2,3786.9,0.4914]
[1753972628764,2.64061262,3787.0,3786.8,0.132]
[1753972629078,2.64082182,3786.7,3786.6,4.296]
[1753972629886,3.21522182,3786.7,3786.6,4.296]
[1753972630041,0.55,3786.6,3786.3,4.296]
[1753972630245,2.77303105,3786.4,3786.3,4.296]
[1753972630654,2.77303105,3786.4,3786.1,0.04]
[1753972630866,3.1343613,3786.5,3785.1,0.04]
[1753972630867,2.64186832,3785.2,3785.1,0.04]
[1753972631063,3.17023348,3785.2,3785.1,0.04]
[1753972631286,2.64186832,3785.2,3785.1,0.04]
[1753972631591,4.46006832,3785.2,3785.1,0.04]
[1753972632091,3.52426832,3785.2,3785.1,0.04]
[1753972632592,0.132,3785.2,3785.1,0.04]
[1753972632825,2.77386832,3785.2,3785.1,0.04]
[1753972632950,3.86542824,3785.2,3785.1,0.04]
[1753972633158,4.80122824,3785.2,3785.1,0.04]
[1753972633360,4.66922824,3785.2,3785.1,0.04]
[1753972633656,3.19291566,3783.7,3782.5,0.4614]
[1753972633887,3.19291566,3783.7,3783.1,1e-08]
[1753972633888,3.19326496,3783.2,3783.1,1e-08]
[1753972634103,3.22630577,3783.2,3783.1,1e-08]
[1753972634256,7.16210577,3783.2,3783.1,1e-08]
[1753972634591,7.12906496,3783.2,3783.1,1e-08]
[1753972634775,2.64326496,3783.2,3783.1,1e-08]
[1753972635215,3.19326496,3783.2,3783.1,1e-08]
[1753972635352,3.63566496,3783.2,3783.1,1e-08]
[1753972635555,4.78998957,3783.2,3783.1,1e-08]
[1753972635860,1.1778838,3783.2,3783.1,1e-08]
[1753972636186,3.19326496,3783.2,3783.1,1e-08]
[1753972636563,3.65286496,3783.2,3783.1,1e-08]
[1753972636762,4.14786496,3783.2,3783.1,1e-08]
[1753972636962,11.47786496,3783.2,3783.1,1e-08]
[1753972637491,7.14786496,3783.2,3783.1,1e-08]
[1753972638256,8.55986548,3783.2,3783.1,1e-08]
[1753972638455,1.09899157,3783.7,3783.1,1e-08]
[1753972638652,3.19326496,3783.2,3783.1,1e-08]
[1753972639091,4.18090577,3783.2,3783.1,1e-08]
[1753972639397,4.14786496,3783.2,3783.1,1e-08]
[1753972639688,11.50790577,3783.2,3783.1,0.00100001]
[1753972639858,14.88714862,3783.2,3783.1,0.00100001]
[1753972640054,14.88714862,3783.2,3783.1,1e-08]
[1753972641790,15.08827932,3783.2,3783.1,1e-08]
[1753972642167,3.19396383,3782.2,3782.1,0.04]
[1753972642493,3.97566383,3782.2,3782.1,0.04]
[1753972642706,6.05736739,3782.2,3782.1,0.04]
[1753972642908,6.02431785,3782.2,3782.1,0.04]
[1753972643261,6.15631785,3782.2,3782.1,0.04]
[1753972644158,10.47631785,3782.2,3782.1,0.04]
[1753972644695,4.10766383,3782.2,3782.1,0.04]
[1753972645266,3.32596383,3782.2,3782.1,0.04]
[1753972646909,0.682,3782.2,3782.1,0.04]
[1753972647097,0.682,3782.2,3782.1,0.4961]
[1753972647286,0.132,3782.2,3782.1,0.4961]
[1753972647615,9.617,3783.1,3782.1,0.9402]
[1753972647616,0.132,3782.3,3782.1,0.9402]
[1753972647784,0.132,3782.6,3782.2,0.9002]
[1753972647989,2.64319937,3783.3,3782.5,2.64375413]
[1753972648189,0.132,3783.0,3782.6,0.4561]
[1753972648411,0.132,3783.0,3782.7,0.4561]
[1753972648615,0.132,3783.0,3782.9,2.64347458]
[1753972648776,0.132,3783.3,3782.9,0.9002]
[1753972648976,0.132,3783.3,3783.0,0.9002]
[1753972649557,0.132,3783.3,3782.9,2.64344693]
[1753972649558,0.132,3783.3,3783.1,0.9002]
[1753972649874,0.132,3783.3,3783.2,0.4561]
[1753972650313,0.132,3783.3,3783.2,9.0027307]
[1753972650732,0.132,3783.3,3783.2,1.254]
[1753972650882,2.6430629,3783.5,3783.2,0.4561]
[1753972651218,2.67621025,3783.4,3782.5,0.4561]
[1753972651422,3.19313791,3783.4,3782.6,6.96668368]
[1753972651622,0.55,3783.4,3782.6,4.323]
[1753972651809,0.55,3783.2,3782.3,6.351]
[1753972652196,3.74826627,3783.3,3782.3,6.351]
[1753972652197,0.55,3783.0,3782.3,6.351]
[1753972652395,0.55,3782.8,3782.3,6.351]
[1753972652586,2.64356415,3782.8,3782.3,6.8071]
[1753972652914,2.64355385,3782.8,3782.3,6.8071]
[1753972653116,0.55,3783.0,3782.4,3.54401529]
[1753972653323,0.55,3783.0,3782.4,0.9002]
[1753972653632,0.55,3783.0,3782.1,4.36]
[1753972653633,0.03304343,3782.9,3782.1,0.4961]
[1753972653918,0.55,3783.2,3782.3,0.4561]
[1753972654232,2.97770855,3783.1,3782.3,0.4561]
[1753972654529,0.33435923,3783.1,3782.3,0.4561]
[1753972654724,0.58304255,3783.0,3782.1,4.8141]
[1753972654931,3.19343365,3783.0,3782.1,4.358]
[1753972655088,2.64376709,3782.5,3782.1,4.358]
[1753972655425,0.0330478,3782.4,3782.1,0.04]
[1753972655622,0.55,3782.8,3782.1,0.04]
[1753972655925,0.55,3782.6,3782.1,0.04]
[1753972656284,2.64396383,3782.2,3782.1,0.04]
[1753972656914,3.19382402,3782.4,3782.1,0.04]
[1753972657123,0.8011,3782.9,3782.1,0.9402]
[1753972657290,2.64352934,3782.9,3782.2,3.10006383]
[1753972657688,0.15046,3783.3,3782.3,0.4561]
[1753972657895,3.0,3783.1,3782.5,2.64371044]
[1753972658091,0.7878,3783.4,3782.6,0.4561]
[1753972658295,0.7878,3783.4,3782.7,0.4561]
[1753972658296,3.0,3783.3,3782.7,0.4561]
[1753972658490,2.64326496,3783.2,3782.7,0.4561]
[1753972658696,3.4596,3783.7,3782.7,0.4561]
[1753972658697,2.64333708,3783.1,3782.7,0.4561]
[1753972659022,2.64333708,3783.1,3782.8,0.4561]
[1753972659243,5.1029,3783.9,3782.2,4.313]
[1753972659244,0.7889,3783.9,3783.0,2.64335889]
[1753972659395,2.64282097,3783.9,3783.1,0.9002]
[1753972659592,2.64249663,3784.3,3783.4,2.64308775]
[1753972659790,2.64260394,3784.2,3783.5,2.64302225]
[1753972659993,2.64265534,3784.1,3783.5,0.4561]
[1753972660294,2.64283356,3783.9,3783.5,0.4561]
[1753972660489,3.4596,3784.3,3783.3,0.818]
[1753972660844,0.132,3783.8,3783.3,0.818]
[1753972661339,0.002,3783.6,3783.4,0.4561]
[1753972661544,0.002,3783.6,3783.5,3.54325537]
[1753972661731,0.002,3783.6,3783.5,3.67525537]
[1753972662241,0.002,3783.6,3783.5,4.43985537]
[1753972662400,0.002,3783.6,3783.5,5.58020253]
[1753972662827,0.002,3783.6,3783.5,8.58020253]
[1753972663027,0.002,3783.6,3783.5,8.44820253]
[1753972663309,0.002,3783.6,3783.5,8.58020253]
[1753972667138,0.002,3783.6,3783.5,8.74595537]
[1753972667308,0.002,3783.6,3783.5,0.8966]
[1753972667520,0.002,3783.6,3783.5,5.1976]
[1753972668729,2.64498551,3783.6,3783.5,4.435]
[1753972669051,4.08707066,3783.6,3783.5,4.299]
[1753972669358,0.9153,3783.6,3783.5,4.299]
[1753972669568,3.08108551,3783.6,3783.5,4.299]
[1753972669743,3.55828551,3783.6,3783.5,4.299]
[1753972669953,2.64306776,3783.5,3783.3,0.132]
[1753972670126,2.64306776,3783.5,3783.4,4.297]
[1753972670326,0.9153,3783.6,3783.4,4.297]
[1753972670761,0.002,3783.6,3783.4,4.297]
[1753972670969,2.64498707,3783.6,3783.4,4.297]
[1753972671148,0.002,3783.6,3783.4,4.297]
[1753972672660,2.64498802,3783.6,3783.4,4.297]
[1753972672861,0.002,3783.6,3783.4,4.297]
[1753972673758,2.64305537,3783.5,3783.4,4.297]
[1753972674081,0.5439716,3783.6,3783.4,4.29]
[1753972674265,0.002,3783.6,3783.4,4.29]
[1753972674765,2.64305537,3783.5,3783.4,4.29]
[1753972675152,2.64305537,3783.5,3782.6,6.351]
[1753972675153,2.64312523,3783.4,3782.6,6.351]
[1753972675340,2.64335456,3783.1,3782.9,0.132]
[1753972675864,2.6434047,3783.0,3782.9,0.132]
[1753972676065,2.6434047,3783.0,3782.6,6.351]
[1753972676066,2.64347458,3782.9,3782.6,6.351]
[1753972676265,2.64347458,3782.9,3782.5,4.282]
[1753972676266,0.9133,3782.8,3782.5,4.282]
[1753972676435,2.64368423,3782.6,3782.5,4.282]
[1753972676638,3.55698423,3782.6,3782.5,4.282]
[1753972677094,2.64396383,3782.2,3782.1,0.04]
[1753972677446,4.09924834,3782.2,3782.1,0.04]
[1753972677646,4.68229788,3782.2,3782.1,0.04]
[1753972677937,4.64924834,3782.2,3782.1,0.04]
[1753972679437,2.64347458,3782.9,3782.2,0.82]
[1753972679658,0.0330443,3782.8,3782.3,4.28]
[1753972679860,0.4772,3782.9,3782.3,4.28]
[1753972679861,2.64380947,3782.5,3782.3,4.28]
[1753972680058,0.9133,3782.7,3782.3,4.28]
[1753972680272,2.64368423,3782.6,3782.3,4.28]
[1753972680475,0.55,3783.2,3782.4,3.10656721]
[1753972680677,0.002,3783.6,3783.3,2.64313173]
[1753972680887,0.002,3783.6,3783.1,4.295]
[1753972681170,0.002,3783.6,3783.2,4.296]
[1753972681371,0.002,3783.6,3783.4,0.7512]
[1753972681578,0.002,3783.6,3783.5,2.65153145]
[1753972681778,0.002,3783.6,3783.5,4.295]
[1753972682072,0.9153,3783.6,3783.2,4.296]
[1753972682273,2.64311024,3783.5,3783.2,4.296]
[1753972682435,3.55635537,3783.5,3783.2,4.296]
[1753972682642,0.9133,3783.5,3783.2,4.296]
[1753972682838,2.64312731,3783.4,3783.2,4.296]
[1753972683042,0.002,3783.6,3783.2,4.296]
[1753972683459,0.002,3783.6,3783.3,3.10596648]
[1753972683703,0.002,3783.6,3783.3,0.4628]
[1753972683865,0.002,3783.6,3783.3,3.10597795]
[1753972684060,0.002,3783.6,3783.3,0.4628]
[1753972684265,0.002,3783.6,3783.4,3.10592515]
[1753972684480,0.002,3783.6,3783.4,0.4628]
[1753972684777,0.002,3783.6,3783.5,0.4628]
[1753972685102,0.002,3783.6,3783.5,4.291]
[1753972685594,0.002,3783.6,3783.5,4.7538]
[1753972686200,0.002,3783.6,3783.5,4.291]
[1753972686374,0.002,3783.6,3782.7,1.2928]
[1753972686580,0.002,3783.6,3782.8,4.29]
[1753972686993,0.002,3783.6,3782.9,0.4628]
[1753972687301,0.002,3783.6,3783.0,2.64335842]
[1753972687795,0.002,3783.6,3782.9,4.7538]
[1753972688103,0.002,3783.6,3783.3,2.64314906]
[1753972688298,0.002,3783.6,3783.4,4.288]
[1753972688600,0.002,3783.6,3783.4,4.7508]
[1753972688801,0.002,3783.6,3783.4,4.288]
[1753972688999,0.002,3783.6,3783.5,0.4628]
[1753972689175,0.002,3783.6,3783.4,4.288]
[1753972689379,0.002,3783.6,3783.5,0.132]
[1753972689984,0.002,3783.6,3783.5,0.5948]
[1753972690386,0.002,3783.6,3783.5,3.23785537]
[1753972690682,0.002,3783.6,3783.5,0.5948]
[1753972691805,0.002,3783.6,3783.5,1.0353]
[1753972692608,0.002,3783.6,3783.5,4.03095537]
[1753972692809,0.002,3783.6,3783.5,2.66029554]
[1753972693013,0.002,3783.6,3783.5,1.3879]
[1753972693376,0.002,3783.6,3783.5,3.89895537]
[1753972693591,0.002,3783.6,3783.5,4.33945537]
[1753972693786,0.002,3783.6,3783.5,7.34793069]
[1753972693984,0.002,3783.6,3783.5,7.33945537]
[1753972694309,0.002,3783.6,3783.5,9.03082856]
[1753972695084,0.002,3783.6,3783.5,13.32282856]
[1753972695888,1e-08,3783.6,3783.5,13.32282856]
[1753972696496,1e-08,3784.0,3783.9,3.47207597]
[1753972696826,1e-08,3784.0,3783.9,10.7715443]
[1753972697029,1e-08,3784.0,3783.9,11.38442289]
[1753972697227,1e-08,3784.0,3783.9,12.31822289]
[1753972697385,1e-08,3784.0,3783.9,12.31722289]
[1753972699132,1e-08,3784.0,3783.9,4.57072289]
[1753972699286,1e-08,3784.0,3783.9,8.23437597]
[1753972699484,1e-08,3784.0,3783.9,8.69087597]
[1753972700113,1e-08,3784.0,3783.9,3.47207597]
[1753972700301,1e-08,3784.0,3783.9,4.287]
[1753972700686,1e-08,3784.0,3783.9,6.92977597]
[1753972701722,0.90050001,3784.0,3783.9,4.287]
[1753972702538,0.90050001,3784.0,3783.5,3.0]
[1753972702691,0.9005,3783.9,3783.6,4.283]
[1753972703039,1e-08,3784.0,3783.7,4.76877182]
[1753972703182,1e-08,3784.0,3783.9,2.64277597]
[1753972703383,1e-08,3784.0,3783.9,7.05777597]
[1753972703637,1e-08,3784.0,3783.9,8.74487597]
[1753972704225,1e-08,3784.0,3783.9,8.28837597]
[1753972704396,1e-08,3784.0,3783.9,12.42432946]
[1753972704607,1e-08,3784.0,3783.9,12.88082946]
[1753972705422,1e-08,3784.0,3783.9,8.14132946]
[1753972705716,1e-08,3784.0,3783.9,12.88382946]
[1753972706923,1e-08,3784.0,3783.9,5.02125349]
[1753972707122,1e-08,3784.0,3783.9,10.68307597]
[1753972707311,1e-08,3784.0,3783.9,11.16037597]
[1753972707701,1e-08,3784.0,3783.9,11.61687597]
[1753972709423,1e-08,3784.0,3783.9,6.39607597]
[1753972709666,0.90050001,3784.0,3783.5,0.001]
[1753972709813,2.64284581,3783.8,3783.5,0.001]
[1753972710013,0.8097,3783.6,3783.5,0.001]
[1753972710207,0.9005,3783.7,3783.5,4.295]
[1753972710413,0.9005,3783.6,3783.5,4.295]
[1753972710805,0.9005,3783.6,3783.5,0.001]
[1753972711148,0.9005,3783.6,3783.5,4.292]
[1753972711297,3.54348551,3783.6,3783.5,0.001]
[1753972711499,3.89783406,3783.6,3783.5,4.291]
[1753972712139,1.25484855,3783.6,3783.5,4.291]
[1753972712324,0.9005,3783.6,3783.5,4.291]
[1753972712523,3.54348551,3783.6,3783.5,4.291]
[1753972712840,3.54348551,3783.6,3783.5,0.001]
[1753972713034,4.34738551,3783.6,3783.5,0.001]
[1753972713836,4.89738551,3783.6,3783.5,0.001]
[1753972714155,5.65471562,3783.6,3783.5,0.001]
[1753972715648,2.64326496,3783.2,3783.1,0.001]
[1753972715849,3.98036496,3783.2,3783.1,0.001]
[1753972716234,4.88086496,3783.2,3783.1,0.001]
[1753972717413,5.01286496,3783.2,3783.1,0.001]
[1753972717640,6.04277497,3783.2,3783.1,0.001]
[1753972719123,3.41782402,3782.4,3782.3,0.001]
[1753972719357,3.54982402,3782.4,3782.3,0.001]
[1753972719856,5.00032402,3782.4,3782.3,0.001]
[1753972720148,5.76473045,3782.4,3782.3,0.001]
[1753972721075,4.31423045,3782.4,3782.3,0.001]
[1753972721280,3.41782402,3782.4,3782.3,0.001]
[1753972723179,0.132,3782.6,3782.3,0.001]
[1753972723473,0.132,3782.6,3782.3,0.4783]
[1753972723773,2.77575328,3782.6,3782.3,0.001]
[1753972723976,0.132,3782.6,3782.3,0.001]
[1753972724740,0.774,3782.9,3782.3,0.001]
[1753972725077,11.48718714,3783.2,3782.3,0.001]
[1753972725078,0.132,3783.2,3782.7,2.77560055]
[1753972725279,0.132,3783.2,3782.8,0.4773]
[1753972726500,0.132,3783.2,3782.7,0.132]
[1753972727376,2.77526769,3783.2,3782.7,0.132]
[1753972727567,2.77527794,3783.2,3782.7,0.132]
[1753972727891,0.132,3783.2,3782.7,0.132]
[1753972728387,0.5975,3783.2,3782.7,0.132]
[1753972728600,3.24081843,3783.2,3782.7,0.132]
[1753972728799,0.5975,3783.2,3782.7,0.132]
[1753972728959,0.132,3783.2,3782.7,0.132]
[1753972729163,0.132,3783.2,3782.8,0.4546]
[1753972729575,2.77527217,3783.2,3782.8,0.4546]
[1753972729781,2.64335605,3783.1,3782.7,0.132]
[1753972730069,2.64341685,3783.0,3782.7,0.132]
[1753972730270,0.27752085,3783.1,3782.4,4.253]
[1753972730494,2.77536304,3783.1,3782.5,3.23031259]
[1753972731050,2.64324572,3783.3,3782.6,2.64363842]
[1753972731271,0.132,3783.2,3782.7,2.77560888]
[1753972731474,2.77526529,3783.2,3782.8,0.4546]
[1753972731707,0.132,3783.2,3782.8,0.4546]
[1753972731918,0.9476,3783.9,3782.9,3.53146659]
[1753972732216,0.79420001,3784.0,3783.2,2.64320758]
[1753972732357,0.79420001,3784.0,3783.6,0.132]
[1753972732788,3.43692785,3784.0,3783.6,0.132]
[1753972733001,0.79420001,3784.0,3783.6,0.132]
[1753972733167,0.9476,3783.9,3783.1,2.64331574]
[1753972733492,1.0796,3783.9,3783.4,0.132]
[1753972733702,1.0796,3783.9,3783.0,5.4828]
[1753972733703,0.132,3783.6,3783.1,0.132]
[1753972733886,0.9476,3783.8,3783.1,0.5866]
[1753972734076,0.132,3783.7,3783.2,0.4546]
[1753972734274,2.64298551,3783.6,3783.1,0.132]
[1753972734476,3.72254068,3783.7,3783.1,0.132]
[1753972735001,3.43692848,3784.0,3783.2,0.4546]
[1753972735297,2.64290228,3783.8,3783.2,0.4546]
[1753972735462,2.64292201,3783.7,3783.2,0.4546]
[1753972735658,0.9476,3783.7,3783.3,0.132]
[1753972735894,2.64312162,3783.5,3783.0,4.381]
[1753972736106,2.6432191,3783.3,3783.0,4.381]
[1753972736375,3.59090052,3783.2,3783.0,4.249]
[1753972736605,2.64333988,3783.1,3782.9,0.132]
[1753972736788,3.59089063,3783.2,3782.9,4.38]
[1753972737088,3.0,3783.9,3783.0,1.02]
[1753972737287,2.64303095,3783.6,3783.2,0.132]
[1753972737570,2.6430023,3783.6,3783.2,0.132]
[1753972737813,2.64305693,3783.5,3783.2,0.5866]
[1753972738120,0.9476,3783.4,3782.9,4.248]
[1753972738267,2.6434047,3783.0,3782.9,4.248]
[1753972738463,2.64357782,3782.8,3782.3,0.8168]
[1753972738668,0.9476,3783.0,3782.6,4.377]
[1753972738929,2.64353825,3782.9,3782.6,4.377]
[1753972739071,2.64361434,3782.7,3782.6,4.245]
[1753972739380,2.64357226,3782.8,3782.6,4.245]
[1753972739582,2.64361434,3782.7,3782.6,4.245]
[1753972739791,2.64373408,3782.6,3782.5,4.246]
[1753972740207,2.64364166,3782.7,3782.5,4.246]
[1753972740408,0.132,3782.9,3782.5,4.246]
[1753972740581,2.64368423,3782.6,3782.5,4.246]
[1753972740782,2.64366447,3782.7,3782.5,4.246]
[1753972740999,0.132,3782.9,3782.5,4.246]
[1753972741428,2.64368423,3782.6,3782.5,4.246]
[1753972741610,0.132,3782.9,3782.5,4.246]
[1753972741808,2.64364038,3782.7,3782.5,4.246]
[1753972742013,2.64354446,3782.8,3782.5,4.246]
[1753972742204,2.64362966,3782.7,3782.5,4.246]
[1753972742577,0.132,3782.9,3782.5,4.246]
[1753972742781,2.64354852,3782.8,3782.5,4.7006]
[1753972743010,2.64357286,3782.8,3782.5,4.7006]
[1753972743210,0.132,3782.9,3782.5,4.246]
[1753972743814,2.64368423,3782.6,3782.5,4.246]
[1753972744093,3.10918423,3782.6,3782.5,4.246]
[1753972744436,2.64368423,3782.6,3782.5,4.246]
[1753972744814,0.4821,3782.8,3782.5,4.246]
[1753972745147,2.64367302,3782.7,3782.5,4.246]
[1753972745290,0.132,3782.9,3782.5,4.7006]
[1753972745497,0.03304168,3783.1,3782.6,0.132]
[1753972745847,2.64361434,3782.7,3782.6,0.132]
[1753972746136,2.64375817,3782.5,3782.3,0.001]
[1753972746293,2.64375817,3782.5,3782.4,4.239]
[1753972746909,2.64382402,3782.4,3782.3,0.001]
[1753972747290,2.64376895,3782.5,3782.3,4.239]
[1753972747743,0.132,3782.7,3782.4,0.888]
[1753972747910,2.64322611,3783.3,3782.6,2.64367838]
[1753972748119,2.64317061,3783.4,3782.7,6.8885958]
[1753972748299,2.64317061,3783.4,3782.7,7.3431958]
[1753972748748,2.64322726,3783.3,3782.7,4.6996]
[1753972748948,2.6435142,3782.9,3782.6,4.245]
[1753972749100,0.4655,3783.3,3782.7,0.4546]
[1753972749308,2.64323612,3783.3,3782.7,0.4546]
[1753972749629,2.64313724,3783.4,3782.7,3.09817765]
[1753972749831,2.64312523,3783.4,3782.7,3.09820508]
[1753972750036,3.19307809,3783.5,3782.8,2.64353938]
[1753972750242,3.19307809,3783.5,3782.7,0.4546]
[1753972750243,2.64328397,3783.2,3782.7,0.4546]
[1753972750418,2.64319975,3783.3,3782.7,3.09815931]
[1753972750846,2.64319975,3783.3,3782.7,0.4546]
[1753972751069,2.64328208,3783.2,3782.7,0.4546]